bitfinex/quotes_ETHUSD_20250810
["timestamp","ask_amount","ask_price","bid_price","bid_amount"]
[1754814659828,0.00200001,4207.9,4207.8,4.56150956]
[1754814660000,0.00200001,4207.9,4207.8,4.58527494]
[1754814660202,0.00200001,4207.9,4207.8,4.56150956]
[1754814660452,0.00200001,4207.9,4207.8,4.58527494]
[1754814660824,0.00200001,4207.9,4207.8,5.04257494]
[1754814661021,0.00200001,4207.9,4207.8,4.56150956]
[1754814661225,0.00200001,4207.9,4207.8,5.49200956]
[1754814661413,0.00200001,4207.9,4207.8,8.49200956]
[1754814663524,0.00200001,4207.9,4207.8,7.56150956]
[1754814664636,0.00200001,4207.9,4207.8,5.71450956]
[1754814665536,0.00200001,4207.9,4207.8,7.56150956]
[1754814665744,0.00200001,4207.9,4207.8,7.56182935]
[1754814666513,0.00200001,4207.9,4207.8,8.49232935]
[1754814666714,0.00200001,4207.9,4207.8,16.31393658]
[1754814666926,0.00200001,4207.9,4207.8,15.85663658]
[1754814667967,0.46210001,4207.9,4207.8,14.00963658]
[1754814668146,0.46210001,4207.9,4207.8,13.99743658]
[1754814669632,0.46210001,4207.9,4207.8,3.21909055]
[1754814671849,0.46210001,4207.9,4207.8,5.59562935]
[1754814672631,0.46210001,4207.9,4207.8,3.21909055]
[1754814672830,0.00200001,4207.9,4207.8,13.89043658]
[1754814673029,0.00200001,4207.9,4207.8,14.00963658]
[1754814674024,0.00200001,4207.9,4207.8,14.94013658]
[1754814676851,0.00200001,4207.9,4207.8,14.46693658]
[1754814677056,0.00200001,4207.9,4207.8,14.00963658]
[1754814678836,0.47100001,4207.9,4207.8,14.00963658]
[1754814679860,0.00200001,4207.9,4207.8,14.00963658]
[1754814680434,0.00200001,4207.9,4207.8,5.71482935]
[1754814680662,0.00200001,4207.9,4207.8,14.00963658]
[1754814682561,0.47100001,4207.9,4207.8,14.00963658]
[1754814682857,0.00200001,4207.9,4207.8,14.00963658]
[1754814686157,0.00200001,4207.9,4207.8,14.01087272]
[1754814686463,0.47100001,4207.9,4207.8,13.89167272]
[1754814686657,0.00200001,4207.9,4207.8,13.89167272]
[1754814687376,0.00200001,4207.9,4207.8,11.51513392]
[1754814687667,0.00200001,4207.9,4207.8,13.89167272]
[1754814689148,0.00200001,4207.9,4207.8,0.22032669]
[1754814689149,0.47100001,4207.9,4207.8,0.22032669]
[1754814689353,0.87533328,4207.9,4207.8,0.22032669]
[1754814689549,0.59020001,4207.9,4207.8,0.22032669]
[1754814691967,0.12120001,4207.9,4207.8,0.22032669]
[1754814692167,0.00200001,4207.9,4207.8,0.22032669]
[1754814692364,0.47100001,4207.9,4207.8,0.22032669]
[1754814692672,0.59020001,4207.9,4207.8,0.22032669]
[1754814692873,0.12120001,4207.9,4207.8,0.22032669]
[1754814693465,0.00200001,4207.9,4207.8,2.59686549]
[1754814693780,0.00200001,4207.9,4207.8,3.53426549]
[1754814693943,0.00200001,4207.9,4207.8,3.06066549]
[1754814695274,0.00200001,4207.9,4207.8,6.06066549]
[1754814696345,0.00200001,4207.9,4207.8,3.22032669]
[1754814696747,0.47100001,4207.9,4207.8,3.22032669]
[1754814697056,0.59020001,4207.9,4207.8,3.22032669]
[1754814697275,0.12120001,4207.9,4207.8,3.22032669]
[1754814698891,0.12120001,4207.9,4207.8,5.59686549]
[1754814699096,0.12120001,4207.9,4207.8,5.59786549]
[1754814699255,0.00200001,4207.9,4207.8,3.22132669]
[1754814699450,0.00200001,4207.9,4207.8,6.06166549]
[1754814700512,0.00200001,4207.9,4207.8,6.53526549]
[1754814700992,0.00200001,4207.9,4207.8,7.57063064]
[1754814701212,0.00200001,4207.9,4207.8,6.53526549]
[1754814702663,0.00200001,4207.9,4207.8,6.07146549]
[1754814702867,0.00200001,4207.9,4207.8,6.53526549]
[1754814705384,0.004,4208.1,4208.0,2.37642585]
[1754814705593,0.004,4208.1,4208.0,12.72655977]
[1754814705898,0.004,4208.1,4208.0,13.78315977]
[1754814707077,0.004,4208.1,4208.0,16.78315977]
[1754814709103,0.004,4208.1,4208.0,18.21215977]
[1754814709273,0.004,4208.1,4208.0,18.2122166]
[1754814710683,0.004,4208.1,4208.0,18.3073076]
[1754814713612,0.004,4208.1,4208.0,18.8573076]
[1754814714194,0.004,4208.1,4208.0,18.7381076]
[1754814714401,0.004,4208.1,4208.0,18.8573076]
[1754814714596,0.004,4208.1,4208.0,5.80010037]
[1754814714799,0.4443,4208.1,4208.0,2.70500937]
[1754814715315,0.4443,4208.1,4208.0,0.33958352]
[1754814715604,0.9011,4208.1,4208.0,0.22038352]
[1754814718026,0.9011,4208.1,4208.0,0.22039375]
[1754814718318,0.4443,4208.1,4208.0,0.22039375]
[1754814718818,0.9011,4208.1,4208.0,0.22039375]
[1754814719995,0.4443,4208.1,4208.0,8.51520098]
[1754814720744,0.4443,4208.1,4208.0,8.5152186]
[1754814720944,0.4443,4208.1,4208.0,0.22041137]
[1754814721327,0.4443,4208.1,4208.0,0.22141137]
[1754814721732,0.4463,4208.1,4208.0,0.22141137]
[1754814722557,0.006,4208.1,4208.0,0.22141137]
[1754814722922,0.4463,4208.1,4208.0,0.22141137]
[1754814723319,0.006,4208.1,4208.0,2.59783722]
[1754814723947,0.006,4208.1,4208.0,0.22141137]
[1754814724154,0.006,4208.1,4208.0,2.59783722]
[1754814724730,0.006,4208.1,4208.0,0.22141137]
[1754814725332,0.006,4208.1,4208.0,2.59783722]
[1754814725528,0.006,4208.1,4208.0,5.59783722]
[1754814727742,0.006,4208.1,4208.0,3.22141137]
[1754814727743,0.9031,4208.1,4208.0,3.22141137]
[1754814728163,0.4463,4208.1,4208.0,3.22141137]
[1754814729261,0.9031,4208.1,4208.0,3.22141137]
[1754814730362,0.4463,4208.1,4208.0,3.22141137]
[1754814731151,0.9031,4208.1,4208.0,3.22141137]
[1754814731665,0.4463,4208.1,4208.0,3.22141137]
[1754814733051,0.9031,4208.1,4208.0,3.22141137]
[1754814734442,1.0223,4208.1,4208.0,3.22141137]
[1754814735372,0.5655,4208.1,4208.0,3.22141137]
[1754814735560,1.0223,4208.1,4208.0,3.22141137]
[1754814736183,1.0223,4208.1,4208.0,0.22141137]
[1754814737900,3.39866938,4208.1,4208.0,0.22141137]
[1754814738109,1.60018709,4208.1,4208.0,0.22141137]
[1754814739078,1.0223,4208.1,4208.0,0.22141137]
[1754814740083,1.0599,4208.1,4208.0,0.22141137]
[1754814740286,3.43626938,4208.1,4208.0,0.22146494]
[1754814740711,3.43626938,4208.1,4208.0,0.22146391]
[1754814740905,4.20242393,4208.1,4208.0,0.22146391]
[1754814742219,1.82605455,4208.1,4208.0,0.22146391]
[1754814742719,4.20242393,4208.1,4208.0,0.22146391]
[1754814742915,1.33165455,4208.1,4208.0,0.22146391]
[1754814746627,2.4095,4208.1,4208.0,0.22146391]
[1754814746919,2.9039,4208.1,4208.0,0.22146391]
[1754814748120,2.4095,4208.1,4208.0,0.22146391]
[1754814748821,5.28026938,4208.1,4208.0,0.22146391]
[1754814749012,5.83026938,4208.1,4208.0,0.22146391]
[1754814749201,6.65132248,4208.1,4208.0,0.22184926]
[1754814752713,4.31292248,4208.1,4208.0,0.22184926]
[1754814753220,6.15692248,4208.1,4208.0,0.22184926]
[1754814753396,5.16662248,4208.1,4208.0,0.22184926]
[1754814755620,6.66462248,4208.1,4208.0,0.22184926]
[1754814757399,6.6662299,4208.1,4208.0,0.22184926]
[1754814757798,0.55,4207.9,4207.8,0.001]
[1754814758003,6.28844119,4207.9,4207.8,0.001]
[1754814758212,7.21459169,4207.9,4207.8,0.001]
[1754814759028,7.21619911,4207.9,4207.8,0.001]
[1754814759607,2.92665177,4207.6,4207.5,0.001]
[1754814759819,5.92599576,4207.6,4207.5,0.001]
[1754814760018,6.35774626,4207.6,4207.5,0.001]
[1754814760204,6.85375368,4207.6,4207.5,0.001]
[1754814760408,6.85214626,4207.6,4207.5,0.001]
[1754814761111,6.85375368,4207.6,4207.5,0.001]
[1754814762835,3.51175368,4207.6,4207.5,0.001]
[1754814763034,5.37760318,4207.6,4207.5,0.001]
[1754814763341,5.35414626,4207.6,4207.5,0.9376]
[1754814763545,1.9632,4207.6,4207.5,0.9376]
[1754814763725,4.33985177,4207.6,4207.5,0.9376]
[1754814764318,4.33985177,4207.6,4207.5,0.001]
[1754814766419,4.79345177,4207.6,4207.5,0.001]
[1754814766658,4.81530127,4207.6,4207.5,0.001]
[1754814766867,5.84348534,4207.6,4207.5,0.001]
[1754814767033,6.86603584,4207.6,4207.5,0.001]
[1754814768367,9.82323584,4207.6,4207.5,0.001]
[1754814768549,9.37043584,4207.6,4207.5,0.001]
[1754814769125,8.91703584,4207.6,4207.5,0.001]
[1754814769724,8.91703584,4207.6,4207.5,0.22155943]
[1754814769920,7.07403584,4207.6,4207.5,0.22155943]
[1754814770125,5.91703584,4207.6,4207.5,0.22155943]
[1754814771072,6.37043584,4207.6,4207.5,0.22155943]
[1754814771439,4.52743584,4207.6,4207.5,0.22155943]
[1754814771638,6.37043584,4207.6,4207.5,0.22155943]
[1754814772855,5.91703584,4207.6,4207.5,0.22155943]
[1754814773060,5.91703584,4207.6,4207.5,1.16835943]
[1754814773563,2.99038407,4207.6,4207.5,1.16835943]
[1754814773759,1.9622,4207.6,4207.5,1.16835943]
[1754814774062,4.33885177,4207.6,4207.5,1.16835943]
[1754814774359,1.9622,4207.6,4207.5,1.16835943]
[1754814774952,4.33885177,4207.6,4207.5,1.16835943]
[1754814775258,4.33885177,4207.6,4207.5,0.9478]
[1754814775562,4.33885177,4207.6,4207.5,1.16824848]
[1754814775765,4.33885177,4207.6,4207.5,0.22144848]
[1754814776258,4.33885177,4207.6,4207.5,1.16824848]
[1754814778233,4.33885177,4207.6,4207.5,1.16843061]
[1754814780383,4.33885177,4207.6,4207.5,0.22163061]
[1754814780585,6.01379243,4207.6,4207.5,0.22163061]
[1754814780752,6.01379243,4207.6,4207.5,0.2217813]
[1754814782565,3.16739243,4207.6,4207.5,0.7153813]
[1754814782864,5.03224193,4207.6,4207.5,0.2217813]
[1754814783056,5.01039243,4207.6,4207.5,0.2217813]
[1754814784532,5.46379243,4207.6,4207.5,0.2217813]
[1754814785038,5.56039243,4207.6,4207.5,0.2217813]
[1754814785245,6.46539243,4207.6,4207.5,0.2217813]
[1754814785638,6.46709951,4207.6,4207.5,0.2217813]
[1754814785940,5.56209951,4207.6,4207.5,0.2217813]
[1754814786246,6.46709951,4207.6,4207.5,0.2217813]
[1754814788255,6.68966124,4207.6,4207.5,0.2217813]
[1754814789748,6.68966124,4207.6,4207.3,0.001]
[1754814789749,2.37676474,4207.4,4207.3,0.001]
[1754814789981,6.33173756,4207.4,4207.3,0.22187186]
[1754814790177,6.76328806,4207.4,4207.3,0.22187186]
[1754814790485,0.55,4207.3,4207.1,1e-08]
[1754814790658,16.08553446,4207.2,4207.1,1e-08]
[1754814790843,16.28621272,4207.2,4207.1,1e-08]
[1754814791043,18.46421467,4207.2,4207.1,1e-08]
[1754814791242,19.36921467,4207.2,4207.1,1e-08]
[1754814791960,19.36921467,4207.2,4206.4,0.001]
[1754814791961,0.55,4206.5,4206.4,0.001]
[1754814792166,2.37744282,4206.2,4206.1,1e-08]
[1754814792341,7.88864282,4206.2,4206.1,1e-08]
[1754814792549,5.91524008,4206.2,4206.1,1e-08]
[1754814792983,4.33864282,4206.2,4206.1,0.94680001]
[1754814793779,4.33864282,4206.2,4206.1,0.49360001]
[1754814794406,0.1192,4206.2,4206.1,0.94680001]
[1754814794687,1.9612,4206.2,4206.1,0.94680001]
[1754814801794,1.9612,4206.2,4206.1,3.32429935]
[1754814802003,1.9612,4206.2,4206.1,0.94680001]
[1754814802363,1.9612,4206.2,4206.1,1.16725316]
[1754814802804,1.9612,4206.2,4206.1,1.10055316]
[1754814805301,1.9612,4206.2,4206.1,0.67185316]
[1754814805872,1.9612,4206.2,4206.1,0.22045316]
[1754814806067,1.9612,4206.2,4206.1,0.67185316]
[1754814806279,1.9612,4206.2,4206.1,1.100665]
[1754814806477,1.9612,4206.2,4206.1,3.47816434]
[1754814807414,1.9612,4206.2,4206.1,1.100665]
[1754814807868,1.9632,4206.2,4206.1,1.100665]
[1754814808295,1.9632,4206.2,4206.1,3.47816434]
[1754814808491,1.9632,4206.2,4206.1,1.100665]
[1754814810574,1.9632,4206.2,4206.1,3.47816434]
[1754814812131,0.1212,4206.2,4206.1,3.47816434]
[1754814812310,0.002,4206.2,4206.1,3.47816434]
[1754814814321,0.002,4206.2,4206.1,6.47816434]
[1754814815398,0.002,4206.2,4206.1,3.220565]
[1754814815602,0.1212,4206.2,4206.1,3.220565]
[1754814816031,0.1212,4206.2,4206.1,0.220565]
[1754814816809,0.1212,4206.2,4206.1,1.100665]
[1754814817721,0.002,4206.2,4206.1,0.220565]
[1754814818462,2.84824282,4206.2,4206.1,0.220565]
[1754814818611,3.30674282,4206.2,4206.1,0.220565]
[1754814819542,5.14774282,4206.2,4206.1,0.220565]
[1754814819739,5.91435558,4206.2,4206.1,0.220565]
[1754814820039,5.91435558,4206.2,4206.1,0.22082817]
[1754814821039,6.46435558,4206.2,4206.1,0.22082817]
[1754814822031,6.46569231,4206.2,4206.1,0.22082817]
[1754814822348,9.46569231,4206.2,4206.1,0.22082817]
[1754814822659,2.37755587,4206.0,4205.9,0.001]
[1754814822859,2.51860537,4206.0,4205.9,0.001]
[1754814823168,2.9887421,4206.0,4205.9,0.001]
[1754814823456,3.53740537,4206.0,4205.9,0.001]
[1754814823664,5.35555587,4206.0,4205.9,0.001]
[1754814823827,6.93457296,4206.0,4205.9,0.001]
[1754814824719,5.91677296,4206.0,4205.9,0.001]
[1754814824947,6.38557296,4206.0,4205.9,0.001]
[1754814825366,5.91677296,4206.0,4205.9,0.001]
[1754814827886,1.69821709,4206.0,4205.9,0.001]
[1754814828049,0.1192,4206.0,4205.9,3.2919124]
[1754814828445,0.1192,4206.0,4205.9,3.3870804]
[1754814830176,0.1192,4206.0,4205.9,6.3870804]
[1754814830753,0.00333673,4206.2,4206.1,2.37749934]
[1754814830977,0.00333673,4206.2,4206.1,10.67230657]
[1754814831179,0.002,4206.2,4206.1,10.67230657]
[1754814831348,0.002,4206.2,4206.1,11.58560657]
[1754814832484,0.002,4206.2,4206.1,14.58560657]
[1754814832689,0.002,4206.2,4206.1,16.42560657]
[1754814833179,1e-08,4206.2,4206.1,6.29079934]
[1754814833499,1e-08,4206.2,4206.1,16.42560657]
[1754814833705,1e-08,4206.2,4206.1,8.13079934]
[1754814833998,1e-08,4206.2,4206.1,16.42560657]
[1754814834374,1e-08,4206.2,4206.1,16.54480657]
[1754814834578,1e-08,4206.2,4206.1,16.76500936]
[1754814835297,0.1192,4207.3,4207.0,2.37699072]
[1754814835498,0.1192,4207.3,4207.0,13.89200074]
[1754814835698,1e-08,4207.3,4207.2,2.37687773]
[1754814836003,0.002,4207.5,4207.2,2.74004929]
[1754814836203,0.002,4207.5,4207.4,13.67157197]
[1754814836503,0.002,4207.5,4207.4,13.89177476]
[1754814836704,0.002,4207.5,4207.4,14.80507476]
[1754814836705,1e-08,4207.5,4207.4,14.80507476]
[1754814836892,0.006,4208.1,4208.0,2.37642585]
[1754814837229,0.006,4208.1,4208.0,16.50672886]
[1754814837384,0.006,4208.1,4208.0,17.42002886]
[1754814837696,0.006,4208.1,4208.0,17.53922886]
[1754814838796,1e-08,4208.1,4208.0,19.48800462]
[1754814840796,1e-08,4208.1,4208.0,19.48690765]
[1754814841041,1e-08,4208.1,4208.0,19.58200265]
[1754814842600,0.002,4208.7,4208.3,5.37622163]
[1754814842926,0.002,4208.7,4208.5,12.7389265]
[1754814843100,0.002,4208.7,4208.5,12.95773114]
[1754814843300,0.002,4208.7,4208.5,13.87103114]
[1754814846133,0.002,4208.7,4208.5,13.96611114]
[1754814847606,0.002,4208.7,4208.6,2.37608705]
[1754814847801,1e-08,4208.7,4208.6,9.67148468]
[1754814848033,0.002,4209.0,4208.8,2.37597414]
[1754814848231,0.002,4209.0,4208.8,7.57493852]
[1754814848399,0.002,4209.0,4208.8,8.46447878]
[1754814848602,0.002,4209.0,4208.8,9.89147878]
[1754814848804,0.002,4209.0,4208.8,10.15155094]
[1754814849303,0.002,4209.0,4208.8,7.85275094]
[1754814849638,0.002,4209.0,4208.8,7.81125094]
[1754814850217,0.002,4209.0,4208.8,8.26375094]
[1754814850737,0.002,4209.0,4208.8,8.72455094]
[1754814851506,0.042,4208.9,4208.8,8.72455094]
[1754814853745,0.042,4208.9,4208.8,5.97325094]
[1754814853946,0.042,4208.9,4208.8,7.81125094]
[1754814855441,0.042,4208.9,4208.8,7.79728094]
[1754814857870,0.042,4208.9,4208.8,5.95928094]
[1754814858192,0.4784,4208.9,4208.8,7.79628094]
[1754814858675,0.4784,4208.9,4208.8,16.08803625]
[1754814859461,0.4784,4208.9,4208.8,13.99096409]
[1754814860898,0.042,4208.9,4208.8,13.99096409]
[1754814861101,0.042,4208.9,4208.8,14.91636409]
[1754814863264,0.042,4208.9,4208.8,15.82796409]
[1754814864799,0.042,4208.9,4208.8,16.75336409]
[1754814865677,0.042,4208.9,4208.8,15.82796409]
[1754814866083,0.042,4208.9,4208.8,15.82914351]
[1754814866297,0.042,4208.9,4208.8,16.75454351]
[1754814867775,0.002,4209.0,4208.8,16.75454351]
[1754814867776,0.002,4209.0,4208.9,5.37591769]
[1754814868082,0.002,4209.0,4208.9,6.52130175]
[1754814868281,0.002,4209.0,4208.9,6.61637675]
[1754814869020,0.002,4209.0,4208.9,6.82637675]
[1754814869193,0.004,4209.1,4209.0,2.37586124]
[1754814869390,1e-08,4209.1,4209.0,8.38200391]
[1754814869592,1e-08,4209.1,4209.0,8.3582453]
[1754814870107,0.002,4209.4,4209.3,2.37569192]
[1754814870309,0.1204,4210.2,4209.3,2.37569192]
[1754814870310,0.002,4210.2,4209.4,5.37563548]
[1754814870510,0.002,4210.2,4209.8,13.66716506]
[1754814870699,0.002,4210.2,4209.8,15.84254912]
[1754814871612,0.4784,4209.9,4209.8,14.00554912]
[1754814872113,0.9739,4209.9,4209.8,15.84154912]
[1754814872280,0.9739,4209.9,4209.8,5.59539381]
[1754814872607,0.042,4209.9,4209.8,5.59539381]
[1754814872806,0.042,4209.9,4209.8,13.88714912]
[1754814873575,0.042,4209.9,4209.8,15.72314912]
[1754814875504,0.042,4209.9,4209.8,16.18394912]
[1754814876082,0.042,4209.9,4209.8,15.72314912]
[1754814876290,0.042,4209.9,4209.8,13.88714912]
[1754814876509,0.042,4209.9,4209.8,15.72314912]
[1754814877999,0.042,4209.9,4209.8,16.64854912]
[1754814878876,0.042,4209.9,4209.8,16.18394912]
[1754814879378,0.042,4209.9,4209.8,15.72314912]
[1754814880583,0.042,4209.9,4209.8,16.18394912]
[1754814880917,0.042,4209.9,4209.8,15.72314912]
[1754814881096,0.042,4209.9,4209.8,16.18394912]
[1754814881694,0.042,4209.9,4209.8,15.72314912]
[1754814881891,0.042,4209.9,4209.8,16.18394912]
[1754814882603,0.042,4209.9,4209.8,15.72314912]
[1754814882987,0.042,4209.9,4209.8,13.88714912]
[1754814883311,0.042,4209.9,4209.8,15.72314912]
[1754814883712,0.042,4209.9,4209.8,15.72293514]
[1754814885112,0.042,4209.9,4209.8,17.69993514]
[1754814885319,0.042,4209.9,4209.8,18.74373514]
[1754814887838,0.042,4209.9,4209.8,18.27913514]
[1754814888131,0.042,4209.9,4209.8,17.81833514]
[1754814888523,0.002,4211.2,4210.8,2.37484563]
[1754814888689,0.002,4211.2,4210.8,8.97501571]
[1754814888895,0.002,4211.2,4211.1,2.37467645]
[1754814889199,0.04,4211.9,4211.8,2.37428177]
[1754814889489,0.04,4211.9,4211.8,15.74454997]
[1754814889690,0.04,4211.9,4211.8,15.72080716]
[1754814890493,0.2495,4212.4,4212.3,2.37399995]
[1754814890690,0.1184,4213.1,4212.4,2.37394359]
[1754814890912,0.4693,4213.4,4212.8,13.6654735]
[1754814891117,0.04,4213.9,4213.8,2.37315487]
[1754814891320,0.04,4213.9,4213.8,8.51152539]
[1754814891529,0.5199,4213.9,4213.8,8.51152539]
[1754814891894,0.04,4213.9,4213.8,8.51152539]
[1754814892089,0.9892,4213.9,4213.8,8.51152539]
[1754814892391,0.2713495,4214.7,4213.8,2.17317008]
[1754814892619,0.4693,4213.9,4213.8,3.1184]
[1754814892928,0.9492,4213.9,4213.8,0.21841492]
[1754814893753,3.32229855,4213.9,4213.8,0.21841492]
[1754814894260,3.32229855,4213.9,4212.4,2.37394303]
[1754814894261,2.37322498,4213.7,4212.4,2.37394303]
[1754814894421,2.37353948,4213.2,4212.3,8.29175531]
[1754814894618,0.9492,4213.1,4212.3,2.3739828]
[1754814894823,0.4693,4213.0,4212.4,2.37392998]
[1754814895676,0.00243042,4214.6,4212.5,3.0]
[1754814895823,0.00243042,4214.6,4214.5,2.3727607]
[1754814896029,0.00243042,4214.6,4214.5,7.2117607]
[1754814896335,0.00243042,4214.6,4214.5,8.6648607]
[1754814896534,0.00243042,4214.6,4214.5,8.9143607]
[1754814896740,0.00243042,4214.6,4214.5,7.9333607]
[1754814896940,0.00243042,4214.6,4214.5,7.4612607]
[1754814897272,0.00243042,4214.6,4214.5,8.9143607]
[1754814898268,0.2495,4214.7,4214.6,5.9227044]
[1754814898569,0.2495,4214.7,4214.6,6.8258044]
[1754814898933,0.2495,4214.7,4214.6,5.3727044]
[1754814899270,0.2495,4214.7,4214.4,10.22627772]
[1754814899271,0.2495,4214.7,4214.4,2.37278887]
[1754814899470,0.2495,4214.7,4214.6,4.2127044]
[1754814899672,0.2495,4214.7,4214.6,7.6848044]
[1754814900125,0.2495,4214.7,4214.6,7.2127044]
[1754814900325,0.2495,4214.7,4214.6,5.3727044]
[1754814900639,1.1987,4214.7,4214.6,4.841]
[1754814901020,0.7188,4214.7,4214.6,4.841]
[1754814901430,0.7188,4214.7,4214.6,7.2137044]
[1754814901674,0.2495,4214.7,4214.6,7.2137044]
[1754814901889,0.2495,4214.7,4214.6,5.3727044]
[1754814902358,0.2495,4214.7,4214.6,7.2147044]
[1754814902739,0.2495,4214.7,4214.6,7.6868044]
[1754814903041,0.2495,4214.7,4214.6,8.1178044]
[1754814903348,0.2495,4214.7,4214.6,7.2147044]
[1754814903548,0.2495,4214.7,4214.6,8.1178044]
[1754814904061,0.2495,4214.7,4214.6,8.6678044]
[1754814904261,0.2495,4214.7,4214.6,8.7862044]
[1754814904435,0.1184,4216.0,4214.7,3.0]
[1754814904638,0.0133935,4216.2,4215.8,15.71670675]
[1754814904863,0.0133935,4216.2,4215.8,17.55770675]
[1754814906168,0.0133935,4216.2,4215.8,17.77428674]
[1754814908055,0.5093,4215.9,4215.8,5.70700902]
[1754814908281,0.04,4215.9,4215.8,5.58860902]
[1754814908680,0.04,4215.9,4215.8,5.58833585]
[1754814909660,0.04,4215.9,4215.8,7.42833585]
[1754814910387,0.0133935,4216.2,4216.1,2.37186024]
[1754814910570,0.0133935,4216.2,4216.1,7.42816706]
[1754814910958,0.0133935,4216.2,4216.1,8.33126706]
[1754814911284,0.0133935,4216.2,4216.1,6.49126706]
[1754814911583,0.0133935,4216.2,4216.1,7.42916706]
[1754814911983,0.4826935,4216.2,4216.1,3.21630682]
[1754814912184,0.9625935,4216.2,4216.1,7.21286024]
[1754814912403,0.4826935,4216.2,4216.1,3.0]
[1754814912602,0.4826935,4216.2,4215.1,10.22627772]
[1754814912603,0.9625935,4216.2,4215.1,10.22627772]
[1754814912768,0.4932935,4216.2,4215.8,2.37201506]
[1754814912975,0.4693,4216.1,4215.1,0.482693]
[1754814913198,0.4693,4216.1,4215.4,2.37219872]
[1754814913398,0.4693,4216.1,4214.8,10.22627772]
[1754814913399,0.4799,4216.0,4215.5,0.21644684]
[1754814913600,2.85182599,4216.0,4215.1,1.841]
[1754814913812,0.0133935,4216.2,4215.2,2.58896542]
[1754814913813,0.9492,4215.9,4215.2,2.58896542]
[1754814914017,0.4693,4215.8,4215.3,2.58888065]
[1754814914307,2.84137642,4215.8,4215.1,1.841]
[1754814914601,0.9492,4215.7,4215.2,0.21679476]
[1754814914802,0.9492,4215.6,4214.9,4.21348398]
[1754814915123,2.37225411,4215.4,4214.3,2.3728465]
[1754814915322,0.0133935,4216.2,4214.1,2.37297079]
[1754814915323,0.0133935,4216.2,4214.5,2.37270936]
[1754814915616,0.4693,4215.3,4214.6,0.21692293]
[1754814915828,0.0133935,4216.2,4214.7,0.21692293]
[1754814916178,0.0133935,4216.2,4216.1,15.59813796]
[1754814916322,0.4799,4218.3,4216.1,15.59813796]
[1754814916323,3.63147014,4220.8,4216.2,3.5633935]
[1754814916493,0.4693,4219.8,4218.7,2.37036899]
[1754814916813,0.4693,4219.5,4218.8,0.21662924]
[1754814916990,0.4693,4220.4,4218.8,0.21662924]
[1754814917196,0.5093,4219.9,4218.8,0.24047967]
[1754814917394,0.5093,4219.9,4218.8,0.67927625]
[1754814917795,0.5093,4219.9,4218.8,0.21677625]
[1754814918214,0.4737,4219.5,4218.8,0.21677625]
[1754814918414,0.5029,4219.9,4218.8,0.21677625]
[1754814918415,0.9766,4218.9,4218.8,0.21677625]
[1754814918715,1.095,4218.9,4217.9,0.1184]
[1754814918895,0.1184,4218.3,4218.0,0.21676023]
[1754814919086,0.5921,4218.3,4218.1,0.21676023]
[1754814919290,0.4737,4218.8,4218.2,0.21676023]
[1754814919488,0.4737,4218.8,4217.7,1.951]
[1754814919489,0.4737,4218.8,4218.5,2.37050526]
[1754814919685,0.04,4218.9,4218.6,0.21676618]
[1754814919903,0.04,4218.9,4218.7,0.21676618]
[1754814920215,0.9366,4218.8,4218.7,0.4737]
[1754814920414,0.9366,4218.8,4217.6,1.952]
[1754814920608,0.9366,4218.8,4218.1,0.711631]
[1754814920802,2.37044047,4218.7,4218.2,0.21687566]
[1754814921004,0.9366,4218.6,4218.3,0.21687566]
[1754814921223,0.9366,4218.6,4218.1,0.711631]
[1754814921224,0.0218495,4218.5,4218.1,0.711631]
[1754814921439,2.37067943,4218.2,4218.1,0.711631]
[1754814921624,3.30727943,4218.2,4218.1,0.711631]
[1754814921809,3.30727943,4218.2,4216.6,1.951]
[1754814921810,2.3707419,4218.1,4216.6,1.951]
[1754814922136,2.37074806,4218.1,4217.1,3.711779]
[1754814922301,0.4737,4218.0,4217.2,0.21704794]
[1754814922506,2.37093366,4217.8,4217.3,0.21704794]
[1754814922809,2.84453008,4218.0,4217.4,0.21704794]
[1754814922810,1.50443637,4217.7,4217.4,0.21704794]
[1754814923006,1.50443637,4217.7,4217.5,0.21713363]
[1754814923330,1.03073637,4217.7,4217.6,0.21718123]
[1754814923533,0.4629,4217.7,4217.6,0.21718123]
[1754814923743,0.4629,4217.7,4217.2,0.21718123]
[1754814923910,0.4737,4217.6,4217.3,0.21718123]
[1754814924110,0.4737,4217.5,4217.4,0.21718123]
[1754814924507,3.30767291,4217.5,4217.4,0.21718123]
[1754814924720,3.6384402,4217.5,4217.4,0.21718123]
[1754814925001,3.6384402,4217.5,4217.0,0.711829]
[1754814925002,2.37113436,4217.4,4217.0,0.711829]
[1754814925203,1.26736729,4217.5,4215.7,10.22627772]
[1754814925204,2.37118937,4217.3,4217.1,0.21752577]
[1754814925434,3.30772913,4217.4,4217.2,0.21752577]
[1754814925639,0.33076729,4217.5,4215.7,12.17327772]
[1754814925640,2.37124158,4217.2,4215.7,12.17327772]
[1754814925824,2.84499781,4217.1,4216.6,0.71189]
[1754814926005,2.37146651,4216.8,4216.7,0.21787507]
[1754814926208,3.30806651,4216.8,4216.7,0.21787507]
[1754814926917,2.37146261,4216.9,4216.7,0.21801525]
[1754814927131,0.4737,4216.8,4215.6,5.41213541]
[1754814927337,2.84519189,4216.8,4216.1,0.711974]
[1754814927562,0.4737,4216.8,4216.2,0.21806687]
[1754814927726,0.4737,4216.8,4216.3,0.21806687]
[1754814927931,0.9366,4216.7,4216.4,0.21806687]
[1754814928126,0.9366,4216.7,4215.7,0.712062]
[1754814928433,2.37184409,4216.2,4215.8,0.21821145]
[1754814928651,1.947,4216.6,4215.9,0.21821145]
[1754814928959,2.3718242,4216.2,4216.0,0.21821145]
[1754814929161,2.37180399,4216.2,4216.1,0.21821145]
[1754814929329,2.60898439,4216.2,4216.1,0.21821145]
[1754814929654,2.72738439,4216.2,4216.1,0.21821145]
[1754814930226,3.20108439,4216.2,4216.1,0.21821145]
[1754814930628,2.3720853,4215.7,4215.6,0.04]
[1754814930825,2.4904853,4215.7,4215.6,0.25834367]
[1754814931072,3.45042926,4215.7,4215.6,0.25834367]
[1754814931944,3.70332926,4215.7,4215.6,0.25834367]
[1754814932537,3.70332926,4215.7,4215.6,0.04]
[1754814933036,4.25332926,4215.7,4215.6,0.04]
[1754814933564,2.92231039,4215.3,4215.2,0.001]
[1754814933735,2.37264811,4214.7,4214.6,0.04]